fUST/lending_fUST_20250415
["ID","MTS","AMOUNT","RATE_DAILY","PERIOD"]
[358001225,1744650639084,-500.0,0.00023954,2]
[358001226,1744650639094,-500.0,0.00023954,2]
[358001227,1744650639104,-500.0,0.00023954,2]
[358001228,1744650639114,-500.0,0.00023954,2]
[358001229,1744650639124,-500.0,0.00023954,2]
[358001230,1744650639134,-500.0,0.00023954,2]
[358001231,1744650639143,-500.0,0.00023954,2]
[358001232,1744650639154,-500.0,0.00023954,2]
[358001233,1744650639164,-500.0,0.00023954,2]
[358001234,1744650639175,-500.0,0.00023954,2]
[358001235,1744650639185,-500.0,0.00023954,2]
[358001236,1744650639196,-500.0,0.00023954,2]
[358001237,1744650639206,-500.0,0.00023954,2]
[358001238,1744650639216,-500.0,0.00023954,2]
[358001239,1744650639227,-500.0,0.00023954,2]
[358001240,1744650639237,-500.0,0.00023954,2]
[358001241,1744650639247,-500.0,0.00023954,2]
[358001242,1744650639257,-500.0,0.00023954,2]
[358001243,1744650639267,-500.0,0.00023954,2]
[358001244,1744650639278,-500.0,0.00023954,2]
[358001245,1744650639288,-500.0,0.00023954,2]
[358001246,1744650639299,-500.0,0.00023954,2]
[358001247,1744650639310,-500.0,0.00023954,2]
[358001248,1744650639321,-500.0,0.00023954,2]
[358001249,1744650639331,-500.0,0.00023954,2]
[358001250,1744650639340,-500.0,0.00023954,2]
[358001251,1744650639350,-500.0,0.00023954,2]
[358001252,1744650639360,-500.0,0.00023954,2]
[358001253,1744650639370,-500.0,0.00023954,2]
[358001254,1744650639380,-500.0,0.00023954,2]
[358001255,1744650639390,-500.0,0.00023954,2]
[358001256,1744650639401,-500.0,0.00023954,2]
[358001257,1744650639411,-158.75393113,0.00023954,2]
[358001258,1744650639420,-500.0,0.00023954,2]
[358001259,1744650639430,-500.0,0.00023954,2]
[358001260,1744650639440,-500.0,0.00023954,2]
[358001261,1744650639450,-22786.22615955,0.00023963,2]
[358001262,1744650639463,-3867.89310551,0.00023963,2]
[358001263,1744650639475,-1538.0126962,0.00023963,2]
[358001264,1744650639487,-7880.61719588,0.00023963,2]
[358001265,1744650639534,-403.19028049,0.00023963,2]
[358001266,1744650639546,-530.67,0.00023963,2]
[358001283,1744650640943,-1568.40889104,0.00023963,2]
[358001286,1744650640955,-208498.47247737,0.00023963,2]
[358001291,1744650640996,-2000.0,0.00023963,2]
[358001293,1744650641008,-512.37431689,0.00023963,2]
[358001566,1744650643721,-659.2907214,0.00023963,2]
[358001581,1744650643845,-19440.80832687,0.00023963,2]
[358001585,1744650643854,-500.0,0.00023973,2]
[358001588,1744650643864,-500.0,0.00023973,2]
[358001593,1744650643874,-500.0,0.00023973,2]
[358001597,1744650643883,-500.0,0.00023973,2]
[358001601,1744650643893,-500.0,0.00023973,2]
[358001605,1744650643902,-500.0,0.00023973,2]
[358001609,1744650643912,-500.0,0.00023973,2]
[358001613,1744650643921,-500.0,0.00023973,2]
[358001617,1744650643931,-500.0,0.00023973,2]
[358001620,1744650643940,-500.0,0.00023973,2]
[358001623,1744650643950,-500.0,0.00023973,2]
[358001625,1744650643959,-500.0,0.00023973,2]
[358001628,1744650643970,-500.0,0.00023973,2]
[358001630,1744650643980,-500.0,0.00023973,2]
[358001632,1744650643990,-500.0,0.00023973,2]
[358001634,1744650644000,-500.0,0.00023973,2]
[358001636,1744650644010,-500.0,0.00023973,2]
[358001638,1744650644020,-500.0,0.00023973,2]
[358001640,1744650644038,-260.53401874,0.0002413,2]
[358001642,1744650644047,-918.11912914,0.000243,5]
[358001644,1744650644056,-260.53401874,0.00024387,2]
[358001646,1744650644067,-260.53401874,0.00024643,2]
[358001648,1744650644077,-772.1220169,0.0002465,2]
[358001650,1744650644086,-918.11912895,0.00024659,5]
[358001652,1744650644095,-500.0,0.00024668,4]
[358001654,1744650644107,-500.0,0.00024773,2]
[358001656,1744650644116,-500.92715402,0.00024773,2]
[358001658,1744650644126,-52109.027528,0.000248,2]
[358001660,1744650644135,-6513.628441,0.00024863,2]
[358001662,1744650644145,-151.47104737,0.00024873,2]
[358001664,1744650644155,-3141.7,0.00024873,2]
[358001666,1744650644164,-500.0,0.00024873,2]
[358001668,1744650644174,-500.0,0.00024873,2]
[358001670,1744650644183,-500.0,0.00024873,2]
[358001672,1744650644193,-500.0,0.00024873,2]
[358001674,1744650644203,-501.24357255,0.00024873,2]
[358001676,1744650644211,-500.0,0.00024873,2]
[358001678,1744650644221,-500.0,0.00024873,2]
[358001680,1744650644230,-500.0,0.00024873,2]
[358001682,1744650644239,-500.0,0.00024873,2]
[358001684,1744650644249,-500.0,0.00024873,2]
[358001686,1744650644259,-500.0,0.00024873,2]
[358001688,1744650644268,-111.3958513,0.00024873,2]
[358001900,1744650647028,-388.6041487,0.00024873,2]
[358001902,1744650647040,-503.5455464,0.00024873,2]
[358001904,1744650647050,-502.11717891,0.00024873,2]
[358001906,1744650647060,-500.0,0.00024873,2]
[358001908,1744650647071,-250.12946052,0.00024873,2]
[358001910,1744650647081,-500.0,0.00024873,2]
[358001912,1744650647091,-500.0,0.00024873,2]
[358001914,1744650647101,-500.0,0.00024873,2]
[358001916,1744650647112,-500.0,0.00024873,2]
[358001918,1744650647121,-500.0,0.00024873,2]
[358001920,1744650647131,-268.59227821,0.00024873,2]
[358001922,1744650647140,-500.0,0.00024873,2]
[358001924,1744650647149,-500.0,0.00024873,2]
[358001926,1744650647159,-160.19883563,0.00024873,2]
[358001928,1744650647168,-500.0,0.00024873,2]
[358001930,1744650647178,-596.82037082,0.00024873,2]
[358001932,1744650647187,-500.0,0.00024873,2]
[358001934,1744650647197,-500.95337585,0.00024873,2]
[358001936,1744650647210,-500.0,0.00024873,2]
[358001938,1744650647219,-176.69761266,0.00024899,2]
[358001958,1744650647383,-183.66314054,0.00024899,2]
[358001960,1744650647394,-151.0,0.000249,7]
[358001962,1744650647403,-267.981258,0.000249,7]
[358001964,1744650647413,-3141.7,0.000249,7]
[358001966,1744650647423,-3141.7,0.000249,7]
[358001968,1744650647433,-3141.7,0.000249,7]
[358001970,1744650647442,-151.0,0.000249,7]
[358001972,1744650647452,-151.0,0.000249,7]
[358001974,1744650647462,-155.798915,0.000249,7]
[358001976,1744650647471,-230.487226,0.000249,7]
[358001978,1744650647481,-161.174324,0.000249,7]
[358001980,1744650647491,-151.0,0.000249,7]
[358001982,1744650647500,-151.0,0.000249,7]
[358001984,1744650647510,-151.0,0.000249,7]
[358001986,1744650647520,-151.0,0.000249,7]
[358001988,1744650647530,-151.0,0.000249,7]
[358001990,1744650647539,-160.0,0.000249,7]
[358001992,1744650647549,-160.0,0.000249,7]
[358001994,1744650647558,-419.9901559,0.000249,7]
[358001996,1744650647567,-27128.17083524,0.000249,2]
[358002003,1744650647614,-27287.76236177,0.000249,2]
[358002005,1744650647626,-4883.29234824,0.000249,2]
[358002007,1744650647638,-4742.92373971,0.000249,2]
[358002009,1744650647649,-807.18846441,0.000249,2]
[358002012,1744650647661,-3593.7,0.000249,2]
[358005724,1744651701347,8133.95233758,0.000125,2]
[358005741,1744651722441,3549.35883386,9e-05,2]
[358005801,1744651840145,-268.5215171,0.0002,3]
[358005803,1744651840155,-2279.5780727,0.00022582,2]
[358005805,1744651840165,-1779.3636812,0.00022831,2]
[358005807,1744651840175,-359.924173,0.00022853,2]
[358005809,1744651840185,-250.6305334,0.00022854,2]
[358005811,1744651840194,-212.2117575,0.00022861,2]
[358005813,1744651840204,-260.53401874,0.00023773,2]
[358005815,1744651840213,-151.0,0.00023842,2]
[358005817,1744651840223,-500.0,0.00023846,2]
[358005819,1744651840232,-229.80311987,0.00023846,2]
[358005821,1744651840242,-500.0,0.00023846,2]
[358005823,1744651840251,-410.75632312,0.00023846,2]
[358005825,1744651840260,-500.0,0.00023846,2]
[358005827,1744651840270,-500.0,0.00023846,2]
[358005829,1744651840279,-267.67680337,0.00023846,2]
[358005831,1744651840291,-232.32319663,0.00023846,2]
[358005833,1744651840301,-500.0,0.00023846,2]
[358005835,1744651840311,-500.0,0.00023846,2]
[358005837,1744651840320,-500.0,0.00023846,2]
[358005839,1744651840333,-500.0,0.00023846,2]
[358005841,1744651840343,-310.65250795,0.00023846,2]
[358005843,1744651840352,-500.0,0.00023846,2]
[358005845,1744651840362,-500.0,0.00023846,2]
[358005847,1744651840371,-500.0,0.00023846,2]
[358005849,1744651840381,-500.0,0.00023846,2]
[358005851,1744651840391,-500.0,0.00023846,2]
[358005853,1744651840401,-500.0,0.00023846,2]
[358005855,1744651840413,-500.0,0.00023846,2]
[358005857,1744651840423,-500.0,0.00023846,2]
[358005859,1744651840432,-500.0,0.00023846,2]
[358005861,1744651840442,-500.0,0.00023846,2]
[358005864,1744651840454,-500.0,0.00023846,2]
[358005866,1744651840463,-500.0,0.00023846,2]
[358005868,1744651840474,-500.0,0.00023846,2]
[358005869,1744651840484,-500.0,0.00023846,2]
[358005871,1744651840494,-500.0,0.00023846,2]
[358005874,1744651840503,-500.0,0.00023846,2]
[358005876,1744651840513,-500.0,0.00023846,2]
[358005878,1744651840522,-500.0,0.00023846,2]
[358005880,1744651840531,-500.0,0.00023846,2]
[358005882,1744651840541,-500.0,0.00023846,2]
[358005884,1744651840550,-500.0,0.00023846,2]
[358005886,1744651840560,-114.92989742,0.00023846,2]
[358005955,1744651841330,-385.07010258,0.00023846,2]
[358005956,1744651841340,-500.0,0.00023846,2]
[358005957,1744651841350,-500.0,0.00023846,2]
[358005958,1744651841358,-124.8217851,0.00023846,2]
[358005959,1744651841411,-375.1782149,0.00023846,2]
[358005961,1744651841421,-500.0,0.00023846,2]
[358005962,1744651841430,-500.0,0.00023846,2]
[358005964,1744651841439,-61.70700539,0.00023846,2]
[358005966,1744651841452,-438.29299461,0.00023846,2]
[358005968,1744651841462,-500.0,0.00023846,2]
[358005970,1744651841471,-500.0,0.00023846,2]
[358005991,1744651841654,-500.0,0.00023846,2]
[358005995,1744651841682,-500.0,0.00023846,2]
[358005997,1744651841692,-500.0,0.00023846,2]
[358005999,1744651841702,-500.0,0.00023846,2]
[358006001,1744651841712,-500.0,0.00023846,2]
[358006003,1744651841721,-500.0,0.00023846,2]
[358006005,1744651841730,-500.0,0.00023846,2]
[358006007,1744651841740,-500.0,0.00023846,2]
[358006009,1744651841750,-500.0,0.00023846,2]
[358006011,1744651841759,-500.0,0.00023846,2]
[358006013,1744651841769,-500.0,0.00023846,2]
[358006015,1744651841779,-94.32454753,0.00023846,2]
[358006017,1744651841791,-405.67545247,0.00023846,2]
[358006019,1744651841800,-500.0,0.00023846,2]
[358006022,1744651841810,-500.0,0.00023846,2]
[358006024,1744651841820,-500.0,0.00023846,2]
[358006026,1744651841830,-500.0,0.00023846,2]
[358006028,1744651841839,-500.0,0.00023846,2]
[358006030,1744651841849,-500.0,0.00023846,2]
[358006032,1744651841858,-275.98591709,0.00023846,2]
[358006034,1744651841871,-224.01408291,0.00023846,2]
[358006036,1744651841880,-500.0,0.00023846,2]
[358006038,1744651841890,-500.0,0.00023846,2]
[358006040,1744651841899,-300.0,0.00023846,2]
[358006042,1744651841910,-353.21598412,0.00023855,2]
[358006044,1744651841920,-3456.76126729,0.00023856,2]
[358006148,1744651842807,-16105.63049831,0.00023856,2]
[358006159,1744651842922,-350437.6082344,0.00023856,2]
[358006161,1744651842932,-300.45523858,0.00023873,2]
[358006163,1744651842942,-446.65900259,0.00023873,2]
[358006165,1744651842952,-500.0,0.00023873,2]
[358006168,1744651842962,-500.0,0.00023873,2]
[358006170,1744651842971,-500.0,0.00023873,2]
[358006172,1744651842980,-500.0,0.00023873,2]
[358006176,1744651842990,-500.0,0.00023873,2]
[358006180,1744651843000,-500.0,0.00023873,2]
[358006183,1744651843009,-500.0,0.00023873,2]
[358006186,1744651843019,-500.0,0.00023873,2]
[358006189,1744651843028,-500.0,0.00023873,2]
[358006192,1744651843037,-500.0,0.00023873,2]
[358006195,1744651843046,-500.0,0.00023873,2]
[358006198,1744651843056,-500.0,0.00023873,2]
[358006201,1744651843065,-500.0,0.00023873,2]
[358006204,1744651843074,-5961.83835795,0.000242,5]
[358006207,1744651843087,-5961.83835781,0.00024659,5]
[358006210,1744651843096,-1000.0,0.00024799,2]
[358006213,1744651843105,-250.0,0.00024799,2]
[358006216,1744651843115,-29051.899774,0.000248,2]
[358006219,1744651843124,-500.0,0.00024873,2]
[358006222,1744651843134,-282.70318792,0.00024873,2]
[358006225,1744651843143,-500.62051794,0.00024873,2]
[358006228,1744651843153,-500.0,0.00024873,2]
[358006231,1744651843163,-198.99467541,0.00024873,2]
[358006234,1744651843172,-500.0,0.00024873,2]
[358006236,1744651843181,-234.33275899,0.00024873,2]
[358006238,1744651843191,-500.0,0.00024873,2]
[358006240,1744651843201,-500.0,0.00024873,2]
[358006242,1744651843210,-186.27927113,0.00024873,2]
[358006244,1744651843220,-501.76491871,0.00024873,2]
[358006246,1744651843229,-500.0,0.00024873,2]
[358006249,1744651843239,-603.97001154,0.00024873,2]
[358006250,1744651843248,-500.0,0.00024873,2]
[358006253,1744651843258,-183.66314054,0.00024899,2]
[358006255,1744651843267,-176.69761266,0.00024899,2]
[358006257,1744651843277,-1846.24466893,0.000249,2]
[358006259,1744651843287,-3916.82776011,0.000249,3]
[358006261,1744651843296,-265924.778805,0.000249,2]
[358006263,1744651843306,-501.46857729,0.00024973,2]
[358006265,1744651843315,-500.0,0.00024973,2]
[358006267,1744651843325,-606.87818694,0.00024973,2]
[358006269,1744651843336,-500.58133861,0.00024973,2]
[358006271,1744651843346,-503.54412412,0.00024973,2]
[358006273,1744651843355,-500.0,0.00024973,2]
[358006275,1744651843365,-500.0,0.00024973,2]
[358006277,1744651843376,-500.0,0.00024973,2]
[358006279,1744651843387,-500.0,0.00024973,2]
[358006281,1744651843396,-171.97032368,0.00025,2]
[358006283,1744651843410,-1821.0,0.00025,2]
[358006285,1744651843419,-2868.0,0.00025,2]
[358006287,1744651843429,-835.0,0.00025,2]
[358006289,1744651843438,-9242.71867269,0.00025,2]
[358006291,1744651843449,-2338.554,0.00025228,2]
[358006293,1744651843459,-536.785,0.00025228,2]
[358006295,1744651843469,-402.0,0.00025228,2]
[358006297,1744651843478,-153.798,0.00025228,2]
[358006299,1744651843488,-250.311,0.00025391,2]
[358006301,1744651843500,-250.0,0.00025391,2]
[358006303,1744651843509,-5961.83835781,0.00025417,6]
[358006305,1744651843518,-2686.18097208,0.000255,120]
[358006307,1744651843528,-3631.48747175,0.00025614,2]
[358006309,1744651843538,-420.0,0.00025982,2]
[358006311,1744651843547,-160.0,0.00026056,2]
[358006313,1744651843556,-160.0,0.00026056,2]
[358006315,1744651843566,-160.0,0.00026056,2]
[358006317,1744651843576,-160.0,0.00026056,2]
[358006319,1744651843587,-838.51730609,0.00026056,2]
[358006321,1744651843596,-160.0,0.00026056,2]
[358006323,1744651843606,-160.0,0.00026056,2]
[358006325,1744651843615,-12547.34863188,0.00026056,2]
[358006327,1744651843625,-419.9901559,0.00026056,2]
[358006329,1744651843634,-160.0,0.00026056,2]
[358006331,1744651843643,-5961.83835781,0.00026176,6]
[358006333,1744651843653,-250.0,0.00026621,2]
[358006335,1744651843663,-151.0,0.000268,14]
[358006337,1744651843672,-5961.83835781,0.00026934,7]
[358006339,1744651843681,-1907.35201497,0.00026973,2]
[358006341,1744651843691,-3631.48747175,0.0002699,2]
[358006343,1744651843701,-58751.92655136,0.00027,2]
[358006345,1744651843710,-246.9438,0.00027,120]
[358006347,1744651843719,-151.0,0.00027,7]
[358006349,1744651843729,-151.0,0.00027,7]
[358006351,1744651843739,-151.0,0.00027,7]
[358006353,1744651843748,-151.0,0.00027,7]
[358006355,1744651843758,-208.81244,0.00027,7]
[358006357,1744651843767,-151.0,0.00027,7]
[358006359,1744651843777,-151.0,0.000271,13]
[358006361,1744651843787,-243.07513181,0.00027168,2]
[358006363,1744651843796,-3631.48747175,0.00027387,2]
[358006365,1744651843805,-1000.0,0.00027397,2]
[358006367,1744651843815,-1000.0,0.00027397,2]
[358006369,1744651843825,-1000.0,0.00027397,2]
[358006372,1744651843835,-1000.0,0.00027397,2]
[358006373,1744651843845,-714.54331634,0.00027397,2]
[358006376,1744651843856,-500.0,0.00027397,5]
[358006378,1744651843865,-10894.4624153,0.0002749,2]
[358006380,1744651843875,-98342.94188,0.000275,3]
[358006382,1744651843884,-151.0,0.000275,7]
[358006384,1744651843894,-151.0,0.000275,7]
[358006386,1744651843904,-151.0,0.000275,7]
[358006388,1744651843914,-151.0,0.000275,7]
[358006390,1744651843924,-151.0,0.000275,7]
[358006392,1744651843933,-153.626318,0.000275,7]
[358006394,1744651843943,-151.0,0.000275,7]
[358006396,1744651843952,-160.0,0.000275,3]
[358006398,1744651843962,-160.0,0.000275,7]
[358006400,1744651843972,-151.0,0.000275,7]
[358006402,1744651843981,-151.0,0.000275,7]
[358006404,1744651843991,-151.0,0.000275,7]
[358006406,1744651844002,-171.571255,0.000275,7]
[358006408,1744651844011,-171.571255,0.000275,7]
[358006410,1744651844021,-151.0,0.000275,7]
[358006412,1744651844031,-385.59958,0.000275,2]
[358006414,1744651844040,-385.59958,0.000275,2]
[358006416,1744651844050,-178.773316,0.000275,7]
[358006418,1744651844059,-151.760182,0.000275,7]
[358006420,1744651844069,-178.773316,0.000275,7]
[358006422,1744651844078,-151.0,0.000275,7]
[358006424,1744651844088,-151.0,0.000275,7]
[358006426,1744651844098,-151.0,0.000275,7]
[358006428,1744651844107,-151.0,0.000275,7]
[358006430,1744651844117,-151.0,0.000275,7]
[358006432,1744651844126,-157.365586,0.000275,7]
[358006434,1744651844136,-157.365586,0.000275,7]
[358006436,1744651844145,-356.200333,0.000275,7]
[358006438,1744651844155,-356.200333,0.000275,7]
[358006440,1744651844164,-160.0,0.000275,3]
[358006443,1744651844174,-160.0,0.000275,7]
[358006445,1744651844184,-151.0,0.000275,7]
[358006447,1744651844194,-160.0,0.000275,3]
[358006466,1744651844366,-160.0,0.000275,7]
[358006469,1744651844376,-12547.34863188,0.000275,3]
[358006471,1744651844386,-12547.34863188,0.000275,7]
[358006473,1744651844396,-504.672322,0.000275,7]
[358006475,1744651844407,-504.672322,0.000275,7]
[358006477,1744651844419,-151.0,0.000275,7]
[358006479,1744651844429,-151.0,0.000275,7]
[358006481,1744651844438,-160.0,0.000275,3]
[358006482,1744651844447,-160.0,0.000275,7]
[358006484,1744651844459,-402.315559,0.000275,7]
[358006486,1744651844468,-402.315559,0.000275,7]
[358006489,1744651844478,-151.0,0.000275,7]
[358006491,1744651844489,-151.0,0.000275,7]
[358006493,1744651844500,-153.889845,0.000275,7]
[358006495,1744651844509,-151.0,0.000275,7]
[358006497,1744651844519,-728.43219872,0.000275,3]
[358006499,1744651844529,-160.0,0.000275,3]
[358006501,1744651844538,-160.0,0.000275,7]
[358006503,1744651844548,-151.0,0.000275,7]
[358006505,1744651844556,-419.9901559,0.000275,3]
[358006507,1744651844566,-419.9901559,0.000275,7]
[358006509,1744651844575,-272.245004,0.000275,7]
[358006511,1744651844587,-2676.639749,0.000275,2]
[358006512,1744651844597,-2676.639749,0.000275,2]
[358006515,1744651844608,-525.244169,0.000275,7]
[358006516,1744651844617,-525.244169,0.000275,7]
[358006518,1744651844627,-151.0,0.000275,7]
[358006521,1744651844636,-500.0,0.00027671,2]
[358006523,1744651844646,-5961.83835781,0.00027693,7]
[358006525,1744651844656,-29575.11466807,0.000277,2]
[358006527,1744651844665,-267.82087873,0.0002778,2]
[358006529,1744651844675,-154.392814,0.00027796,7]
[358006531,1744651844684,-2676.639749,0.00027796,2]
[358006533,1744651844694,-2676.639749,0.00027796,2]
[358006535,1744651844703,-525.244169,0.00027796,7]
[358006537,1744651844713,-151.0,0.00027796,7]
[358006539,1744651844722,-525.244169,0.00027796,7]
[358006541,1744651844732,-152.82,0.000279,31]
[358006543,1744651844742,-152.82,0.000279,31]
[358006545,1744651844751,-152.82,0.000279,31]
[358006547,1744651844761,-152.82,0.000279,31]
[358006549,1744651844770,-152.82,0.000279,31]
[358006551,1744651844779,-152.82,0.000279,31]
[358006553,1744651844788,-152.82,0.000279,31]
[358006555,1744651844798,-152.82,0.000279,31]
[358006557,1744651844807,-152.82,0.000279,31]
[358006559,1744651844816,-152.82,0.000279,31]
[358006561,1744651844825,-160.049388,0.00027973,5]
[358006563,1744651844835,-3631.48747175,0.0002798,2]
[358006564,1744651844844,-32400.29111164,0.0002799,2]
[358006566,1744651844853,-1186.51591635,0.0002799,7]
[358006568,1744651844863,-151.0,0.0002799,7]
[358006571,1744651844873,-153.006761,0.0002799,7]
[358006573,1744651844883,-263.858761,0.0002799,7]
[358006575,1744651844893,-151.0,0.0002799,7]
[358006577,1744651844902,-151.0,0.0002799,7]
[358006579,1744651844911,-151.0,0.0002799,7]
[358006581,1744651844921,-151.0,0.0002799,7]
[358006583,1744651844930,-151.0,0.0002799,7]
[358006585,1744651844939,-151.0,0.0002799,7]
[358006587,1744651844949,-151.0,0.0002799,7]
[358006589,1744651844958,-166.174427,0.0002799,7]
[358006590,1744651844967,-151.0,0.0002799,7]
[358006593,1744651844977,-151.0,0.0002799,7]
[358006594,1744651844987,-171.571255,0.0002799,7]
[358006597,1744651844997,-171.571255,0.0002799,7]
[358006599,1744651845006,-151.0,0.0002799,7]
[358006600,1744651845015,-385.59958,0.0002799,2]
[358006602,1744651845024,-385.59958,0.0002799,2]
[358006604,1744651845034,-178.773316,0.0002799,7]
[358006607,1744651845044,-178.773316,0.0002799,7]
[358006608,1744651845055,-151.0,0.0002799,7]
[358006611,1744651845065,-151.0,0.0002799,7]
[358006613,1744651845074,-151.0,0.0002799,7]
[358006615,1744651845084,-254.817596,0.0002799,7]
[358006616,1744651845094,-151.0,0.0002799,7]
[358006619,1744651845103,-157.365586,0.0002799,7]
[358006621,1744651845113,-157.365586,0.0002799,7]
[358006623,1744651845122,-356.200333,0.0002799,7]
[358006625,1744651845131,-356.200333,0.0002799,7]
[358006627,1744651845140,-151.0,0.0002799,7]
[358006629,1744651845150,-504.672322,0.0002799,7]
[358006630,1744651845159,-504.672322,0.0002799,7]
[358006633,1744651845170,-151.0,0.0002799,7]
[358006634,1744651845179,-151.848456,0.0002799,7]
[358006636,1744651845190,-402.315559,0.0002799,7]
[358006639,1744651845200,-402.315559,0.0002799,7]
[358006641,1744651845210,-151.0,0.0002799,7]
[358006643,1744651845219,-200.129952,0.0002799,7]
[358006645,1744651845228,-151.0,0.0002799,7]
[358006647,1744651845237,-894.29581808,0.00028,2]
[358006649,1744651845247,-818.34339715,0.00028,2]
[358006651,1744651845256,-3631.48747175,0.00028218,2]
[358006653,1744651845266,-2249.0,0.00028228,2]
[358006654,1744651845275,-402.0,0.00028228,2]
[358006658,1744651845285,-402.0,0.00028228,2]
[358006660,1744651845294,-587.0,0.0002831,2]
[358006662,1744651845303,-500.0,0.00028382,2]
[358006663,1744651845313,-5961.83835781,0.00028452,8]
[358006665,1744651845322,-1574.5146828,0.000285,7]
[358006667,1744651845332,-500.0,0.00028674,2]
[358006669,1744651845341,-160.0,0.000287,3]
[358006671,1744651845352,-632.0,0.000288,2]
[358006673,1744651845362,-14525.949887,0.0002899,2]
[358006676,1744651845371,-80339.31689144,0.00029,7]
[358006678,1744651845382,-80339.31689144,0.00029,7]
[358006680,1744651845391,-871.53366606,0.00029,2]
[358006682,1744651845401,-17558.32015588,0.00029,7]
[358006684,1744651845413,-1661.27753519,0.00029,7]
[358006686,1744651845423,-17558.32015588,0.00029,7]
[358006688,1744651845433,-1661.27753519,0.00029,7]
[358006689,1744651845442,-2819.30847651,0.00029,7]
[358006690,1744651845453,-2819.30847651,0.00029,7]
[358006691,1744651845463,-1809.73064473,0.00029,7]
[358006692,1744651845472,-1809.73064473,0.00029,7]
[358006693,1744651845482,-13344.40195622,0.00029,7]
[358006694,1744651845492,-13344.40195622,0.00029,7]
[358006695,1744651845502,-266.42274873,0.00029,7]
[358006696,1744651845511,-266.42274873,0.00029,7]
[358006697,1744651845520,-2464.8743784,0.00029,7]
[358006698,1744651845529,-2464.8743784,0.00029,7]
[358006699,1744651845539,-151.0,0.00029,7]
[358006700,1744651845549,-151.0,0.00029,7]
[358006701,1744651845558,-151.0,0.00029,7]
[358006702,1744651845568,-151.0,0.00029,7]
[358006703,1744651845577,-151.0,0.00029,7]
[358006704,1744651845588,-151.0,0.00029,7]
[358006705,1744651845598,-151.0,0.00029,7]
[358006706,1744651845607,-151.0,0.00029,7]
[358006708,1744651845617,-151.0,0.00029,7]
[358006710,1744651845627,-151.0,0.00029,7]
[358006712,1744651845636,-151.0,0.00029,7]
[358006713,1744651845645,-151.0,0.00029,7]
[358006715,1744651845655,-151.0,0.00029,7]
[358006718,1744651845665,-229.901727,0.00029,7]
[358006720,1744651845675,-151.0,0.00029,7]
[358006722,1744651845684,-151.0,0.00029,7]
[358006724,1744651845693,-151.0,0.00029,7]
[358006726,1744651845702,-151.0,0.00029,7]
[358006728,1744651845712,-151.0,0.00029,7]
[358006730,1744651845722,-178.308556,0.00029,7]
[358006732,1744651845731,-154.234229,0.00029,7]
[358006734,1744651845741,-171.571255,0.00029,7]
[358006736,1744651845751,-171.571255,0.00029,7]
[358006738,1744651845760,-171.571255,0.00029,7]
[358006740,1744651845770,-171.571255,0.00029,7]
[358006742,1744651845780,-171.571255,0.00029,7]
[358006744,1744651845789,-171.571255,0.00029,7]
[358006746,1744651845799,-151.0,0.00029,7]